Cogmind - Beta 16 @@@ ROGUE MODE // 2026.01.18 @ 03:06:59 Player: giga amogus in da vent Result: Destroyed by X-62 Marksman with Gauss Rifle Performance ------------- Evolutions (4) 2000 Regions Visited (5) 1000 Robots Destroyed (102) 510 Value Destroyed (3111) 3111 Prototype IDs (2) 40 Alien Tech Used (0) 0 Bonus (328) 328 TOTAL SCORE: 6989 Bonus ------- High Alert Combat Kills 328 Cogmind --------- Core Integrity 0/850 Matter 300/300 Energy 265/450 System Corruption 0% Temperature Cool (1) Movement Treading (160) Location -6/Factory Parts ------- > --- POWER (2) -------- (None) > --- PROPULSION (7) --- Light Treads > --- UTILITY (3) ------ Energy Well > --- WEAPON (3) ------- Gatling Laser Thermic Laser > --- INVENTORY (5) ---- Aluminum Leg Gravmag System Visual Processing Unit Improved Medium Armor Plating Shock Rifle Peak State ------------ > --- POWER ------------ Light Nuclear Core Micro Nuclear Core > --- PROPULSION ------- Gravmag System Gravmag System Gravmag System Gravmag System Gravmag System Gravmag System > --- UTILITY ---------- Improved Heat Sink Energy Filter > --- WEAPON ----------- Shock Rifle Gatling Laser Ion Cannon > --- INVENTORY -------- Visual Processing Unit Medium Armor Plating Heavy Armor Plating Ion Cannon [Rating: 49] Favorites ----------- Power Light Ion Engine Engine Light Ion Engine Power Core Light Nuclear Core Propulsion Aluminum Leg Treads Light Treads Leg Aluminum Leg Hover Unit Gravmag System Utility Improved Heat Sink Device Improved Heat Sink Storage Compact Battery Processor Visual Processing Unit Protection Medium Armor Plating Weapon Beam Cannon Energy Gun Shock Rifle Energy Cannon Beam Cannon Ballistic Gun Light Assault Rifle Ballistic Cannon Flak Cannon Launcher Grenade Launcher Build | -11 -10 -9 -8 -7 -6 ------- Run | Yrd Mat Mat Mat Fac Fac Slots Evolved 8 | . . 2 2 2 2 Power 1 | . . . 1 . . Propulsion 5 | . . 2 1 1 1 Utility 1 | . . . . . 1 Weapon 1 | . . . . 1 . Parts Attached 83 | 5 15 13 24 21 5 Power 14 | 1 2 5 3 3 . Engine 11 | 1 2 5 2 1 . Core 3 | . . . 1 2 . Reactor . | . . . . . . Propulsion 27 | 2 2 3 10 9 1 Treads 1 | . . . . . 1 Leg 19 | 2 2 3 10 2 . Wheel . | . . . . . . Hover 7 | . . . . 7 . Flight . | . . . . . . Utility 19 | . 7 2 4 4 2 Device 9 | . 5 . 1 2 1 Storage 2 | . . . . 1 1 Processor 1 | . 1 . . . . Hackware . | . . . . . . Protection 7 | . 1 2 3 1 . Artifact . | . . . . . . Weapon 23 | 2 4 3 7 5 2 Energy Gun 7 | 2 . . . 3 2 Energy Cannon 6 | . 3 1 2 . . Ballistic Gun 5 | . . 2 2 1 . Ballistic Cannon 2 | . . . 1 1 . Launcher 3 | . 1 . 2 . . Special Weapon . | . . . . . . Impact Weapon . | . . . . . . Slashing Weapon . | . . . . . . Piercing Weapon . | . . . . . . Special Melee Weapon . | . . . . . . Unidentified Prototypes 1 | . . . 1 . . Parts Lost 34 | . 1 5 10 4 14 Power 9 | . . 3 3 1 2 Propulsion 14 | . . 1 5 2 6 Utility 5 | . 1 . 1 . 3 Weapon 6 | . . 1 1 1 3 Highest Loss Streak 14 | . 1 2 7 4 14 To Critical Strikes . | . . . . . . Average Backups 4 | 1 4 3 3 3 5 Power . | . . . . . . Propulsion . | . 1 . . . 2 Utility 1 | . . 1 1 2 2 Weapon 1 | . 1 . 1 1 1 Tool/Special . | . . . . . . Unused Backups 5 | . 1 . . 1 3 Power . | . . . . . . Propulsion 1 | . . . . . 1 Utility 4 | . 1 . . 1 2 Weapon . | . . . . . . Tool/Special . | . . . . . . Average Slot Usage (%) 83 | . 92 95 90 77 18 Engine 8 | . 13 9 12 1 . Core 2 | . . . . 8 1 Leg 30 | . 28 42 42 23 . Hover 3 | . . . . 10 5 Device 6 | . 13 . 3 7 4 Processor 1 | . 3 10 . . . Protection 7 | . 3 11 13 3 . Energy Gun 3 | . . . . 8 1 Energy Cannon 8 | . 18 12 4 5 . Ballistic Gun 3 | . . 1 7 3 1 Ballistic Cannon 1 | . . . 1 2 1 Launcher 4 | . 9 6 5 . . Peak Build Rating 49 | 5 8 12 30 49 48 Average Rating 18 | 2 6 10 20 30 11 On Entrance 16 | . 5 8 11 26 48 Avg Prop Armor Cover (%) . | . . . . . . Naked Turns 63 | . . . . . 63 Heaviest Build 37 | 7 11 23 37 32 28 Greatest Support 83 | 20 20 40 83 56 54 Greatest Overweight (x) 3 | . . . . 3 2 Average Overweight (x) . | . . . . . . Largest Inventory Capacity 5 | 5 5 5 5 5 5 Average Capacity 5 | 5 5 5 5 5 5 Most Carried 5 | 5 5 5 5 5 5 Average Carried 4 | 1 4 3 4 4 5 Final Capacity 5 | 5 5 5 5 5 5 Final Carried 5 | 1 5 4 4 5 5 Class Distribution -------------------- 47% | Scavenger-Mutant 30% | Mutant 14% | Scavenger-Gunner 8% | Scavenger-Tank Dominant Class ---------------- Mutant | -10/Materials Scavenger-Mutant | -9/Materials Scavenger-Mutant | -8/Materials Scavenger-Gunner | -7/Factory Mutant | -6/Factory Resources | -11 -10 -9 -8 -7 -6 ----------- Run | Yrd Mat Mat Mat Fac Fac Matter Collected 1865 | 203 267 201 686 458 50 Remotely 13 | . 13 . . . . Salvage Created 2947 | . 709 488 1068 587 95 Parts 192 | . 51 27 76 36 2 Haulers Intercepted 3 | . . . 3 . . Recyclers Shooed 5 | . 1 . 4 . . Parts Field Recycled . | . . . . . . Retrieved Matter . | . . . . . . Parts Self-Destructed . | . . . . . . Prevented . | . . . . . . Parts Restored . | . . . . . . Kills | -11 -10 -9 -8 -7 -6 ------- Run | Yrd Mat Mat Mat Fac Fac Combat Hostiles Destroyed 71 | . 18 13 28 10 2 Guns 9 | . . . 2 7 . Cannons 31 | . 11 8 9 3 . AOE 28 | . 6 5 17 . . Classes Destroyed 13 | . 5 3 4 1 . Worker 11 | . . 1 7 3 . Builder 7 | . 1 2 2 2 . Hauler 3 | . . . 3 . . Recycler 3 | . 2 1 . . . Watcher 7 | . 3 1 2 1 . Swarmer 15 | . 8 3 4 . . Grunt 41 | . 10 8 17 6 . Brawler 1 | . . 1 . . . Sentry 7 | . . 1 3 1 2 Specialist 2 | . . . 2 . . Hunter 2 | . . . 1 1 . Programmer 2 | . . . . 2 . Heavy 1 | . . . 1 . . Best Kill Streak 13 | . 6 8 13 5 2 Combat Bots Only 6 | . 5 5 6 3 2 Max Kills in Single Turn 12 | . 3 2 12 1 1 Gunslinging . | . . . . . . Exploded 5 | . 3 1 5 . . Melee . | . . . . . . Uniques/NPCs Destroyed . | . . . . . . Combat | -11 -10 -9 -8 -7 -6 -------- Run | Yrd Mat Mat Mat Fac Fac Hostile Shots Fired 592 | . 69 47 143 83 250 Missed 201 | . 21 12 47 22 99 Hits 391 | . 48 35 96 61 151 Projectile 391 | . 48 35 96 61 151 Critical Strikes 12 | . . . 7 1 4 Damage Taken 5464 | . 434 376 2120 978 1556 Core 1584 | . 75 33 371 238 867 Absorbed by Shields 109 | . . . . . 109 Core Remaining (%) 71 | 100 70 91 32 66 . Volleys Fired 185 | . 40 22 70 35 18 Largest 3 | . 2 2 2 3 3 Hottest 190 | . 120 120 97 190 148 Shots Fired 351 | . 76 40 121 90 24 Gun 115 | . . . 38 58 19 Cannon 193 | . 69 30 57 32 5 Launcher 43 | . 7 10 26 . . Special . | . . . . . . Kinetic 94 | . . . 50 33 11 Thermal 202 | . 69 30 45 45 13 Explosive 43 | . 7 10 26 . . Electromagnetic 12 | . . . . 12 . Robot Hit Streak 11 | . 5 3 6 7 11 Robot Miss Streak 6 | . 4 5 6 5 4 Penetration Max 1 | . . . . 1 1 Secondary Targets . | . . . . . . Shots Hit Robots 185 | . 31 15 66 54 19 Core Hits 169 | . 24 27 75 40 3 Critical Kills 1 | . 1 . . . . Critical Parts Destroyed 1 | . . . 1 . . Critical Strikes 8 | . 1 . 1 3 3 Burn 5 | . . . . 2 3 Meltdown 1 | . 1 . . . . Destroy 1 | . . . 1 . . Blast 1 | . . . . 1 . Melee Attacks . | . . . . . . Impact . | . . . . . . Slashing . | . . . . . . Piercing . | . . . . . . Sneak Attacks . | . . . . . . Combat Hostiles . | . . . . . . Follow-up Attacks . | . . . . . . Damage Inflicted 7297 | . 969 905 3670 1334 419 Guns 1172 | . . . 181 686 305 Cannons 2317 | . 561 297 760 585 114 Explosions 3795 | . 408 608 2729 50 . Melee . | . . . . . . Ramming 13 | . . . . 13 . Kinetic 1096 | . . . 387 470 239 Thermal 3030 | . 561 297 1289 703 180 Explosive 3010 | . 408 608 1994 . . Electromagnetic 148 | . . . . 148 . Impact . | . . . . . . Slashing . | . . . . . . Piercing . | . . . . . . Highest Corruption . | . . . . . . Average Corruption . | . . . . . . Corruption Purged . | . . . . . . Corruption Blocked . | . . . . . . Overload Shots . | . . . . . . Overflow Damage 303 | . 12 . 286 5 . Projectiles 31 | . 12 . 14 5 . Explosions 272 | . . . 272 . . Melee . | . . . . . . Knockbacks 9 | . . . . 9 . Impact . | . . . . . . Kinetic 9 | . . . . 9 . Secondary . | . . . . . . Self-Inflicted Damage 202 | . . . 196 6 . Shots 4 | . . . 4 . . Rammed 1 | . . . . 1 . Targets Rammed 2 | . 1 . . 1 . Kicked 1 | . 1 . . . . Crushed . | . . . . . . Highest Temperature 693 | . 306 362 550 693 155 Average Temperature 117 | . 82 116 79 208 67 Received Heat Transfer 1522 | . 114 114 675 327 292 Effects 30 | . . . 4 26 . Shutdowns 9 | . . . 2 7 . Energy Bleed 2 | . . . . 2 . Interference 4 | . . . 1 3 . Matter Decay 3 | . . . . 3 . Short Circuit 1 | . . . . 1 . Damage (minor) 4 | . . . . 4 . Damage (major) 5 | . . . . 5 . Damage (core) 2 | . . . 1 1 . Siege Activations . | . . . . . . Martial Activations . | . . . . . . Shielding Activations . | . . . . . . Robots Disrupted . | . . . . . . Combat Hostiles . | . . . . . . Robots Corrupted . | . . . . . . Combat Hostiles . | . . . . . . Parts Fried 1 | . . . . 1 . Impact Corruptions . | . . . . . . Robots Melted 3 | . 1 . . . 2 Combat Hostiles 3 | . 1 . . . 2 Parts Melted 9 | . 2 . . 3 4 Heat Transferred 5502 | . 1184 629 1488 1401 800 Parts Sabotaged . | . . . . . . Parts Stolen . | . . . . . . Parts Stripped . | . . . . . . Power Chain Reactions 1 | . . . . 1 . Alert | -11 -10 -9 -8 -7 -6 ------- Run | Yrd Mat Mat Mat Fac Fac Maximum Alert Level 3 | . 1 1 3 1 . Low Security (%) 59 | 100 61 57 47 59 100 Level 1 25 | . 38 42 . 40 . Level 2 6 | . . . 24 . . Level 3 7 | . . . 27 . . Level 4 . | . . . . . . Level 5 . | . . . . . . High Security . | . . . . . . Max Security . | . . . . . . Peak Influence 807 | . 266 270 807 357 100 Initial 357 | . . 89 96 357 95 Average 221 | . 154 198 362 195 39 Influence Increases 2653 | . 568 381 1167 356 181 Destroy 0b10 Robot/C 1420 | . 360 260 560 200 40 Destroy 0b10 Robot/NC 160 | . 35 25 70 30 . Destroy Leader 330 | . 66 42 130 72 20 Successful Hack 2 | . . . 2 . . Disable Machine 360 | . 60 . 270 15 15 Destroy Structure 246 | . 47 54 135 9 1 Partial Spotted 15 | . . . . 15 . Lose Combat Pursuer 120 | . . . . 15 105 Influence Decreases 2553 | . 356 363 612 946 276 Entered New Map 785 | . . 123 134 428 100 Time Decay 1477 | . 346 190 378 478 85 Lost Part 291 | . 10 50 100 40 91 Squads Dispatched 21 | . 3 1 9 6 2 Investigation 2 | . 1 . . 1 . Extermination 3 | . . . . 3 . Reinforcement 12 | . 2 1 6 1 2 Assault . | . . . . . . Garrison 4 | . . . 3 1 . Intercept . | . . . . . . Searches Triggered . | . . . . . . Construction Impeded 1 | . . . 1 . . Haulers Reinforced . | . . . . . . Active Scanning Responses . | . . . . . . Cargo Convoy Interrupts . | . . . . . . Stealth | -11 -10 -9 -8 -7 -6 --------- Run | Yrd Mat Mat Mat Fac Fac Distress Signals 4 | . 2 . 1 1 . Communications Jammed . | . . . . . . Distress Signals . | . . . . . . Times Spotted 102 | . 25 16 36 13 12 Peak Tracking Total 7 | . 6 7 5 5 6 Tactical Retreats 4 | . . . . 1 3 Traps | -11 -10 -9 -8 -7 -6 ------- Run | Yrd Mat Mat Mat Fac Fac Traps Triggered 2 | . 1 . . 1 . Indirectly . | . . . . . . Trap Hack Attempts . | . . . . . . Triggered . | . . . . . . Disarmed . | . . . . . . Reprogrammed . | . . . . . . Reused . | . . . . . . Traps Extracted . | . . . . . . Installed . | . . . . . . Triggered . | . . . . . . Machines | -11 -10 -9 -8 -7 -6 ---------- Run | Yrd Mat Mat Mat Fac Fac Machines Disabled 24 | . 4 . 18 1 1 Max in Single Turn 11 | . 2 . 11 1 1 Machines Repaired . | . . . . . . Machines Dismantled . | . . . . . . Machines Sabotaged . | . . . . . . Overloaded Fab Kills . | . . . . . . Hacking | -11 -10 -9 -8 -7 -6 --------- Run | Yrd Mat Mat Mat Fac Fac Machines Accessed 5 | . 2 . 1 2 . Terminals 2 | . 2 . . . . Fabricators . | . . . . . . Repair Stations 1 | . . . . 1 . Recycling Units . | . . . . . . Scanalyzers 1 | . . . 1 . . Garrison Access 1 | . . . . 1 . Total Hacks 7 | . 2 . 1 4 . Successful 3 | . 2 . 1 . . Failed 4 | . . . . 4 . Catastrophic 2 | . . . . 2 . Database Lockouts . | . . . . . . Manual . | . . . . . . Terminals 2 | . 2 . . . . Fabricators . | . . . . . . Repair Stations 1 | . . . . 1 . Recycling Units . | . . . . . . Scanalyzers 1 | . . . 1 . . Garrison Access 3 | . . . . 3 . Terminal Hacks 2 | . 2 . . . . Record 1 | . 1 . . . . Zone Layout 1 | . 1 . . . . Fabricator Hacks . | . . . . . . Repair Station Hacks . | . . . . . . Recycling Unit Hacks . | . . . . . . Scanalyzer 1 | . . . 1 . . Insert Component 1 | . . . 1 . . Garrison Access Hacks . | . . . . . . Unauthorized Hacks . | . . . . . . Terminals . | . . . . . . Fabricators . | . . . . . . Repair Stations . | . . . . . . Recycling Units . | . . . . . . Scanalyzers . | . . . . . . Garrison Access . | . . . . . . Data Cores Recovered . | . . . . . . Used . | . . . . . . Hacking Detections 1 | . . . . 1 . Full Trace Events 1 | . . . . 1 . Feedback Events . | . . . . . . Feedback Blocked . | . . . . . . Robot Schematics Acquired . | . . . . . . Robots Built . | . . . . . . Authchips . | . . . . . . Time . | . . . . . . Total Robot Build Rating . | . . . . . . Part Schematics Acquired . | . . . . . . Parts Built . | . . . . . . Authchips . | . . . . . . Time . | . . . . . . Total Part Build Rating . | . . . . . . Part Studies Acquired . | . . . . . . Parts Repaired . | . . . . . . Time . | . . . . . . Parts Recycled . | . . . . . . Recycled Matter . | . . . . . . Retrieved Matter . | . . . . . . Retrieved Components . | . . . . . . Parts Scanalyzed . | . . . . . . Part Schematics Acquired . | . . . . . . Parts Damaged . | . . . . . . Bothacking | -11 -10 -9 -8 -7 -6 ------------ Run | Yrd Mat Mat Mat Fac Fac Used RIF Installer . | . . . . . . Robots Hacked . | . . . . . . Non-combat . | . . . . . . Combat . | . . . . . . Robot Hacks Applied . | . . . . . . Relay Couplers Released . | . . . . . . Fabnet Peak Effective % . | . . . . . . Robots Rewired . | . . . . . . Allies Hacked . | . . . . . . Hacks Repelled . | . . . . . . Allies | -11 -10 -9 -8 -7 -6 -------- Run | Yrd Mat Mat Mat Fac Fac Total Allies . | . . . . . . Largest Group . | . . . . . . Highest-Rated Group . | . . . . . . Highest-Rated Ally . | . . . . . . Total Orders . | . . . . . . Ally Attacks . | . . . . . . Total Damage . | . . . . . . Kills . | . . . . . . Allies Corrupted . | . . . . . . Allies Melted . | . . . . . . Intel | -11 -10 -9 -8 -7 -6 ------- Run | Yrd Mat Mat Mat Fac Fac Active Infowar (turns) 676 | . 282 394 . . . Optics 610 | . 216 394 . . . Sensors 52 | . 52 . . . . Terrain 14 | . 14 . . . . Robot Analysis Total . | . . . . . . Derelict Logs Recovered . | . . . . . . Drone Launches . | . . . . . . Drone Recoveries . | . . . . . . Exploration | -11 -10 -9 -8 -7 -6 ------------- Run | Yrd Mat Mat Mat Fac Fac Turns Passed 3918 | 56 918 395 1109 1222 218 Spaces Moved 2539 | 54 635 235 516 927 172 Core 165 | 28 . . . . 137 Treads 6 | . . . . . 6 Legs 1977 | 26 635 235 516 565 . Wheels . | . . . . . . Hover 391 | . . . . 362 29 Flight . | . . . . . . Fastest Speed 40 | 50 120 120 120 40 40 Average Speed 105 | 83 120 120 123 89 78 Slowest Speed 280 | 120 120 120 130 280 180 Overloaded Moves . | . . . . . . Propulsion Burnouts . | . . . . . . Robots Hopped . | . . . . . . Potential Cave-ins . | . . . . . . Cave-ins Triggered . | . . . . . . Exploration Rate (%) 31 | 4 86 23 47 22 4 Regions Visited 5 Branch Regions . Pre-discovered Areas . | . . . . . . Known Exits Taken . | . . . . . . Unknown Exits Taken 5 | 1 1 1 1 1 . Scrap Searched . | . . . . . . Spaces Dug . | . . . . . . Terrain Destroyed 273 | . 51 56 158 8 . Melee . | . . . . . . Projectile 7 | . . . 7 . . AOE 266 | . 51 56 151 8 . Terrain Rammed . | . . . . . . Walls Destroyed . | . . . . . . Machines Disabled . | . . . . . . Actions | -11 -10 -9 -8 -7 -6 --------- Run | Yrd Mat Mat Mat Fac Fac Total 3436 | 64 714 307 877 1245 229 Wait 520 | 1 1 19 234 232 33 Move 2534 | 53 634 234 515 926 172 Hop . | . . . . . . Pick Up 55 | 5 12 9 16 13 . Fast Attach 31 | 1 5 2 7 10 6 Attach 36 | 4 4 9 11 8 . Detach . | . . . . . . Swap 25 | . 6 6 8 5 . Drop 47 | . 10 6 16 15 . Fire 185 | . 40 22 70 35 18 Melee . | . . . . . . Ram 1 | . . . . 1 . Kick 1 | . 1 . . . . Crush . | . . . . . . Escape Stasis . | . . . . . . Rewire 1 | . 1 . . . . Trap . | . . . . . . Miscellaneous . | . . . . . . Route ------- -11/Scrapyard -10/Materials (discovered 3 exits: [*Mat x2] / [*Min]) -9/Materials (discovered 2 exits: *Mat / [*Min]) -8/Materials (discovered 2 exits: *Fac x2) -7/Factory -6/Factory History --------- Turn | Location | Event 10 | -11/Scrapyard | Discovered new exit (range 14) 57 | -11/Scrapyard | Entered Materials 298 | -10/Materials | Discovered new exit (range 16) 312 | -10/Materials | Build established: Mutant 457 | -10/Materials | Discovered new exit (range 8) 959 | -10/Materials | Discovered new exit (range 10) 975 | -10/Materials | Entered another Materials area 975 | -9/Materials | Evolved 2 slots: Propulsion x2 1213 | -9/Materials | Discovered new exit (range 9) 1238 | -9/Materials | Discovered new exit (range 13) 1337 | -9/Materials | Build established: Scavenger-Mutant 1370 | -9/Materials | Entered another Materials area 1370 | -8/Materials | Evolved 2 slots: Power x1, Propulsion x1 1827 | -8/Materials | Garrison activated, responded to threat 2088 | -8/Materials | Discovered new exit (range 11) 2298 | -8/Materials | Discovered new exit (range 16) 2315 | -8/Materials | Core integrity fell below 50% 2361 | -8/Materials | Lost 7 parts (2p3n1u1w) 2479 | -8/Materials | Entered Factory 2479 | -7/Factory | Evolved 2 slots: Propulsion x1, Weapon x1 2805 | -7/Factory | Garrison activated, responded to threat 2887 | -7/Factory | Lost 4 parts (1p2n1w) 3675 | -7/Factory | Discovered new exit (range 16) 3701 | -7/Factory | Entered another Factory area 3701 | -6/Factory | Evolved 2 slots: Propulsion x1, Utility x1 3779 | -6/Factory | Lost 14 parts (2p6n3u3w) 3791 | -6/Factory | Core integrity fell below 50% 3891 | -6/Factory | Core integrity fell below 20% 3919 | -6/Factory | Destroyed by X-62 Marksman with Gauss Rifle Last Messages --------------- 03832_ ALERT: Security rotation in progress. 03873_ Acquired Thermic Laser. 03885_ Y-54 Guardian suffers critical hit (Burn). 03888_ Y-54 Guardian heat spikes uncontrollably. 03889_ Y-54 Guardian critical meltdown. 03889_ Imp. Heat Sink melted. 03889_ Imp. Light Armor Plating melted. 03889_ Lgt. Treads melted. 03904_ Y-54 Guardian suffers critical hit (Burn). 03905_ Y-54 Guardian critical meltdown. 03905_ Imp. Heat Sink melted. 03908_ Acquired Lgt. Treads. 03909_ Acquired 38 matter. 03915_ Penetrated by Slug. 03915_ Acquired Gatling Laser. 03917_ Acquired 10 matter. 03919_ Penetrated by Slug. [Achievement: 5k Club] Map ----- +----------------------------------------------------+ | ?# """"T"""" # #???????? | | ?# # #?????" # | | ?# """"""""" # #????"" ? | | ?# % # ##??? ?? | | ?# """"""""" # #??? =??? | | ?# # * ####+##### | | ?# #!%= | | ?##########+####### = % % #??? | | ????????# ##### % " #??? | | ????????# ! T" #??? | | ????????# %%* "" #??? | | ????????# % #??? | | ????????# ##### #??? | | ????????### ###???### """ #??? | | ??????#####/######### """ #??? | | ?????# ! # """ + ? | | ?????# """"""""" # """ # | | ?????# # #? | | ?????#] """"""""" # ! #??? | | ?????# + +??? | | ?????# # ######??? | | #########+########### ###?????? | | # # #???????# ####### | | # # #########x% x # | | # # # | | # %@% + | | # # # | | # ####### ### # | | # #?????# #?# ####### | | # "" #????##+####+#+########## | | # S"" #????# + | | # "" #????# ## | | # #????# """ """ """ """ #? | | #########????# """ """ """ """ #? | | ?????????????# """ """ """ """ #? | | ?????????????# #? | | ?????????????# #? | | ?????????????###################? | | ????????????????????????????????? | | ????????????????????????????????? | | ????????????????????????????????? | | ????????????????????????????????? | | ????????????????????????????????? | | ????????????????????????????????? | | ????????????????????????????????? | | ????????????????????????????????? | | ????????????????????????????????? | | ????????????????????????????????? | | ????????????????????????????????? | | ????????????????????????????????? | +----------------------------------------------------+ Best States ------------- Heat Dissipation 51 Energy Generation 24 Energy Capacity 450 Matter Stores 300 Matter Capacity 300 Sight Range 18 Robot Scan Range 14 Terrain Scan Range 14 Terrain Scan Density 10 Armor Coverage 600 Utility Shielding 33 Evasion (%) 57 Recoil Reduction 1 Energy Filtering 30 Item Schematics ----------------- None Robot Schematics ------------------ None Fabricated ------------ Nothing Repaired ---------- Nothing Studied --------- None Alien Tech Used ----------------- None Achievements -------------- 5k Club Ghost 'Em Heavy Suspicion I Have A Map? It Was An Accident, I Swear It's Just You Made in Tau Ceti IV Overwhelming Quick And Dirty Spot Them First There's More Where That Came From Troublemaker Well Done Challenges ------------ None Game ------ Seed QuantumMediumCrosscalibrator Manual? 0 Play Time 01:03:11 Cumulative 4.7 hours Start 2026.01.18 @ 01:58:37 End 2026.01.18 @ 03:06:59 Sessions 6 Manual Loads 0 Difficulty Rogue Special Mode None Game No. 6 Rogue 6 Adventurer 0 Explorer 0 Win Type - Total 0 Types 0/0/0/0/0/0/0/0/0/0 Lore% 2 Gallery% 8 Achievement% 8 Wizard Run 0 Options --------- Layout 2 ASCII 0 Keyboard 0 Movement Mouse Keybinds 0 Fullscreen 1 Font 24/Smallcaps Map View 50x44 Zoom Use 0% Tactical HUD 1 Map Filters NONE Filters NONE Steam 1 RUN: 25f7483a-abdb-45cd-bcde-bfc5f30834e1